[Event "NJSK 2026 Jeugd C"]
[Site "Helmond, Netherlands"]
[Date "2026.04.27"]
[Round "4.3"]
[White "Zhang, Xiheng"]
[Black "Teianu, Sabin"]
[Result "0-1"]
[TimeControl "90min/40moves + 30sec/move"]
[WhiteTitle "-"]
[BlackTitle "-"]
[WhiteFideId "40102386"]
[BlackFideId "1095846"]
[WhiteElo "2135"]
[BlackElo "2131"]

1. e4 {[%clk 01:30:58]} e6 {[%clk 01:30:55]} {[%emt 00:00:05]} 2. d4 {[%clk
01:31:21]} {[%emt 00:00:07]} d5 {[%clk 01:31:22]} {[%emt 00:00:04]} 3. e5
{[%clk 01:31:46]} {[%emt 00:00:04]} c5 {[%clk 01:31:48]} {[%emt 00:00:05]} 4.
c3 {[%clk 01:32:12]} {[%emt 00:00:04]} Nc6 {[%clk 01:32:14]} {[%emt 00:00:04]}
5. Nf3 {[%clk 01:32:38]} {[%emt 00:00:04]} Qb6 {[%clk 01:32:40]} {[%emt
00:00:05]} 6. Na3 {[%clk 01:33:01]} {[%emt 00:00:06]} cxd4 {[%clk 01:30:25]}
{[%emt 00:02:45]} 7. cxd4 {[%clk 01:33:25]} {[%emt 00:00:06]} Bb4+ {[%clk
01:30:42]} {[%emt 00:00:14]} 8. Bd2 {[%clk 01:33:46]} {[%emt 00:00:08]} Nge7
{[%clk 01:30:21]} {[%emt 00:00:52]} 9. Nc2 {[%clk 01:32:34]} {[%emt 00:01:41]}
Bxd2+ {[%clk 01:30:45]} {[%emt 00:00:06]} 10. Qxd2 {[%clk 01:32:57]} {[%emt
00:00:05]} Qxb2 {[%clk 01:31:02]} {[%emt 00:00:14]} 11. Bd3 {[%clk 01:32:40]}
{[%emt 00:00:47]} Qb6 {[%clk 01:31:20]} {[%emt 00:00:13]} 12. O-O {[%clk
01:30:51]} {[%emt 00:02:18]} h6 {[%clk 01:31:43]} {[%emt 00:00:08]} 13. Rab1
{[%clk 01:28:58]} {[%emt 00:02:23]} Qa5 {[%clk 01:27:47]} {[%emt 00:04:26]} 14.
Qe2 {[%clk 01:23:18]} {[%emt 00:06:10]} O-O {[%clk 01:27:18]} {[%emt 00:00:59]}
15. Rfc1 {[%clk 01:16:16]} {[%emt 00:07:33]} Rb8 {[%clk 01:13:49]} {[%emt
00:13:58]} 16. Na1 {[%clk 01:02:40]} {[%emt 00:14:05]} Qc7 {[%clk 01:06:08]}
{[%emt 00:08:11]} 17. Nb3 {[%clk 00:59:49]} {[%emt 00:03:21]} b6 {[%clk
01:00:32]} {[%emt 00:06:07]} 18. Rc3 {[%clk 00:57:04]} {[%emt 00:03:15]} Bb7
{[%clk 00:56:35]} {[%emt 00:04:28]} 19. Rbc1 {[%clk 00:54:27]} {[%emt
00:03:06]} Rbc8 {[%clk 00:50:12]} {[%emt 00:06:51]} 20. h4 {[%clk 00:49:36]}
{[%emt 00:05:22]} Qb8 {[%clk 00:42:10]} {[%emt 00:08:32]} 21. Bb1 {[%clk
00:44:44]} {[%emt 00:05:22]} Rc7 {[%clk 00:18:16]} {[%emt 00:24:41]} 22. Qd3
{[%clk 00:35:38]} {[%emt 00:09:18]} Rfc8 {[%clk 00:18:00]} {[%emt 00:00:47]} 23.
a3 {[%clk 00:28:14]} {[%emt 00:07:54]} Ng6 {[%clk 00:17:01]} {[%emt 00:01:30]}
24. h5 {[%clk 00:23:19]} {[%emt 00:05:24]} Nf8 {[%clk 00:17:01]} {[%emt
00:00:29]} 25. g4 {[%clk 00:22:05]} {[%emt 00:01:44]} Ne7 {[%clk 00:16:03]}
{[%emt 00:01:29]} 26. g5 {[%clk 00:17:55]} {[%emt 00:04:40]} Ba6 {[%clk
00:15:56]} {[%emt 00:00:37]} 27. Qe3 {[%clk 00:17:24]} {[%emt 00:01:01]} Rxc3
{[%clk 00:16:14]} {[%emt 00:00:12]} 28. Rxc3 {[%clk 00:17:50]} {[%emt
00:00:04]} Rxc3 {[%clk 00:16:08]} {[%emt 00:00:36]} 29. Qxc3 {[%clk 00:18:14]}
{[%emt 00:00:06]} hxg5 {[%clk 00:12:02]} {[%emt 00:04:36]} 30. Nxg5 {[%clk
00:16:52]} {[%emt 00:01:52]} f6 {[%clk 00:08:57]} {[%emt 00:03:35]} 31. exf6
{[%clk 00:15:23]} {[%emt 00:01:59]} gxf6 {[%clk 00:09:22]} {[%emt 00:00:06]} 32.
Nh3 {[%clk 00:13:24]} {[%emt 00:02:29]} Be2 {[%clk 00:08:54]} {[%emt 00:00:58]}
33. h6 {[%clk 00:11:32]} {[%emt 00:02:22]} Bg4 {[%clk 00:08:15]} {[%emt
00:01:08]} 34. Qe3 {[%clk 00:08:04]} {[%emt 00:03:58]} Bf5 {[%clk 00:03:26]}
{[%emt 00:05:19]} 35. Bxf5 {[%clk 00:03:46]} {[%emt 00:04:48]} Nxf5 {[%clk
00:03:49]} {[%emt 00:00:07]} 36. Qf3 {[%clk 00:02:57]} {[%emt 00:01:20]} Ng6
{[%clk 00:03:04]} {[%emt 00:01:15]} 37. Qe2 {[%clk 00:01:55]} {[%emt 00:01:32]}
Qc8 {[%clk 00:02:21]} {[%emt 00:01:13]} 38. Qg4 {[%clk 00:01:29]} {[%emt
00:00:56]} Kh7 {[%clk 00:02:35]} {[%emt 00:00:16]} 39. Nd2 {[%clk 00:01:06]}
{[%emt 00:00:54]} Qc1+ {[%clk 00:01:18]} {[%emt 00:01:46]} 40. Nf1 {[%clk
00:01:30]} {[%emt 00:00:06]} Qxh6 {[%clk 00:01:28]} {[%emt 00:00:20]} 41. Ng3
{[%clk 00:01:10]} {[%emt 00:00:50]} Qh4 {[%clk 00:01:21]} {[%emt 00:00:37]} 42.
Qxh4+ {[%clk 00:00:35]} {[%emt 00:01:05]} Ngxh4 {[%clk 00:01:27]} {[%emt
00:00:24]} 43. Nh5 {[%clk 00:00:46]} {[%emt 00:00:18]} Kg6 {[%clk 00:01:10]}
{[%emt 00:00:48]} 44. N5f4+ {[%clk 00:00:55]} {[%emt 00:00:21]} Kf7 {[%clk
00:01:29]} {[%emt 00:00:10]} 45. Ne2 {[%clk 00:01:04]} {[%emt 00:00:22]} Nf3+
{[%clk 00:01:51]} {[%emt 00:00:08]} 46. Kf1 {[%clk 00:01:28]} {[%emt 00:00:06]}
N3xd4 {[%clk 00:02:09]} {[%emt 00:00:11]} 47. Nc3 {[%clk 00:01:51]} {[%emt
00:00:07]} Nd6 {[%clk 00:01:19]} {[%emt 00:01:20]} 48. Nf4 {[%clk 00:01:57]}
{[%emt 00:00:24]} b5 {[%clk 00:01:34]} {[%emt 00:00:16]} 49. Nd3 {[%clk
00:01:55]} {[%emt 00:00:31]} Nc2 {[%clk 00:01:15]} {[%emt 00:00:49]} 50. a4
{[%clk 00:02:11]} {[%emt 00:00:14]} b4 {[%clk 00:00:42]} {[%emt 00:01:03]} 51.
Ne2 {[%clk 00:02:08]} {[%emt 00:00:32]} b3 {[%clk 00:00:33]} {[%emt 00:00:41]}
52. Nec1 {[%clk 00:02:17]} {[%emt 00:00:21]} Nd4 {[%clk 00:00:42]} {[%emt
00:00:21]} 53. Nb2 {[%clk 00:02:40]} {[%emt 00:00:08]} Nc4 {[%clk 00:00:39]}
{[%emt 00:00:32]} 54. Ncd3 {[%clk 00:03:06]} {[%emt 00:00:03]} e5 {[%clk
00:00:36]} {[%emt 00:00:33]} 55. Ke1 {[%clk 00:03:19]} {[%emt 00:00:17]} e4
{[%clk 00:00:48]} {[%emt 00:00:19]} 56. Nxc4 {[%clk 00:03:24]} {[%emt
00:00:25]} dxc4 {[%clk 00:01:11]} {[%emt 00:00:07]} 57. Nb2 {[%clk 00:03:48]}
{[%emt 00:00:06]} c3 {[%clk 00:01:27]} {[%emt 00:00:13]} 58. Nc4 {[%clk
00:04:14]} {[%emt 00:00:04]} b2 {[%clk 00:01:52]} {[%emt 00:00:05]} 59. Nd6+
{[%clk 00:04:38]} {[%emt 00:00:06]} Kg8 {[%clk 00:02:16]} {[%emt 00:00:07]} 60.
Nxe4 {[%clk 00:05:04]} {[%emt 00:00:05]} b1=Q# {[%clk 00:02:37]} {[%emt
00:00:08]} 0-1

[Event "NJSK 2026 Jeugd C"]
[Site "Helmond, Netherlands"]
[Date "2026.04.27"]
[Round "4.4"]
[White "Sosef, Noah"]
[Black "Uitermark, Imre"]
[Result "1/2-1/2"]
[TimeControl "90min/40moves + 30sec/move"]
[WhiteTitle "-"]
[BlackTitle "-"]
[WhiteFideId "40107060"]
[BlackFideId "40105199"]
[WhiteElo "2012"]
[BlackElo "1957"]

1. e4 {[%clk 01:30:57]} {[%emt 00:00:02]} c5 {[%clk 01:31:00]} 2. Nf3 {[%clk
01:31:18]} {[%emt 00:00:09]} Nc6 {[%clk 01:31:27]} {[%emt 00:00:03]} 3. d4
{[%clk 01:31:41]} {[%emt 00:00:07]} cxd4 {[%clk 01:31:56]} {[%emt 00:00:01]} 4.
Nxd4 {[%clk 01:32:05]} {[%emt 00:00:06]} Nf6 {[%clk 01:32:18]} {[%emt
00:00:02]} 5. Nc3 {[%clk 01:32:32]} {[%emt 00:00:08]} e5 {[%clk 01:32:45]}
{[%emt 00:00:03]} 6. Ndb5 {[%clk 01:32:58]} {[%emt 00:00:05]} d6 {[%clk
01:33:12]} {[%emt 00:00:03]} 7. Bg5 {[%clk 01:33:21]} {[%emt 00:00:06]} a6
{[%clk 01:33:40]} {[%emt 00:00:03]} 8. Na3 {[%clk 01:33:45]} {[%emt 00:00:06]}
b5 {[%clk 01:34:08]} {[%emt 00:00:02]} 9. Nd5 {[%clk 01:34:09]} {[%emt
00:00:06]} Be7 {[%clk 01:34:34]} {[%emt 00:00:04]} 10. Bxf6 {[%clk 01:34:34]}
{[%emt 00:00:05]} Bxf6 {[%clk 01:35:00]} {[%emt 00:00:03]} 11. c3 {[%clk
01:34:56]} {[%emt 00:00:09]} Rb8 {[%clk 01:35:29]} {[%emt 00:00:02]} 12. Nc2
{[%clk 01:35:14]} {[%emt 00:00:11]} Bg5 {[%clk 01:35:56]} {[%emt 00:00:03]} 13.
a4 {[%clk 01:34:51]} {[%emt 00:00:53]} bxa4 {[%clk 01:36:23]} {[%emt 00:00:03]}
14. Ncb4 {[%clk 01:35:12]} {[%emt 00:00:09]} Nxb4 {[%clk 01:36:52]} {[%emt
00:00:02]} 15. Nxb4 {[%clk 01:35:35]} {[%emt 00:00:06]} Bb7 {[%clk 01:36:47]}
{[%emt 00:00:35]} 16. Qxa4+ {[%clk 01:16:27]} {[%emt 00:19:38]} Kf8 {[%clk
01:31:51]} {[%emt 00:05:26]} 17. Bd3 {[%clk 01:14:16]} {[%emt 00:02:40]} g6
{[%clk 01:30:52]} {[%emt 00:01:30]} 18. O-O {[%clk 01:07:40]} {[%emt 00:07:06]}
Kg7 {[%emt 00:35:06]} 1/2-1/2

[Event "NJSK 2026 Jeugd C"]
[Site "Helmond, Netherlands"]
[Date "2026.04.27"]
[Round "4.5"]
[White "Nadrshin, Oleg"]
[Black "Blok, Lukas"]
[Result "0-1"]
[TimeControl "90min/40moves + 30sec/move"]
[WhiteTitle "-"]
[BlackTitle "-"]
[WhiteFideId "40111873"]
[BlackFideId "40110494"]
[WhiteElo "1894"]
[BlackElo "1991"]

1. e4 {[%clk 01:30:57]} {[%emt 00:00:02]} d6 {[%clk 01:30:47]} {[%emt
00:00:13]} 2. d4 {[%clk 01:31:20]} {[%emt 00:00:07]} Nf6 {[%clk 01:31:15]}
{[%emt 00:00:03]} 3. Nc3 {[%clk 01:31:44]} {[%emt 00:00:06]} g6 {[%clk
01:31:43]} {[%emt 00:00:03]} 4. f4 {[%clk 01:31:43]} {[%emt 00:00:30]} Bg7
{[%clk 01:32:04]} {[%emt 00:00:09]} 5. Nf3 {[%clk 01:32:08]} {[%emt 00:00:05]}
c5 {[%clk 01:32:33]} {[%emt 00:00:02]} 6. Be3 {[%clk 01:28:55]} {[%emt
00:03:41]} Qa5 {[%clk 01:25:22]} {[%emt 00:07:41]} 7. Qd2 {[%clk 01:19:29]}
{[%emt 00:09:56]} cxd4 {[%clk 01:09:44]} {[%emt 00:16:08]} 8. Bxd4 {[%clk
01:10:53]} {[%emt 00:09:06]} O-O {[%clk 01:07:29]} {[%emt 00:02:45]} 9. Bxf6
{[%clk 01:01:43]} {[%emt 00:09:41]} Bxf6 {[%clk 01:06:42]} {[%emt 00:01:17]} 10.
Nd5 {[%clk 01:00:34]} {[%emt 00:01:39]} Qxd2+ {[%clk 01:02:45]} {[%emt
00:04:26]} 11. Kxd2 {[%clk 00:57:11]} {[%emt 00:03:53]} Nd7 {[%clk 01:03:07]}
{[%emt 00:00:08]} 12. Nxf6+ {[%clk 00:57:19]} {[%emt 00:00:22]} Nxf6 {[%clk
01:03:30]} {[%emt 00:00:07]} 13. Bd3 {[%clk 00:57:14]} {[%emt 00:00:35]} b5
{[%clk 00:58:10]} {[%emt 00:05:50]} 14. Rhe1 {[%clk 00:50:27]} {[%emt
00:07:17]} Rb8 {[%clk 00:56:34]} {[%emt 00:02:06]} 15. e5 {[%clk 00:43:59]}
{[%emt 00:06:58]} Nd5 {[%clk 00:54:45]} {[%emt 00:02:18]} 16. exd6 {[%clk
00:43:07]} {[%emt 00:01:23]} e6 {[%clk 00:49:42]} {[%emt 00:05:33]} 17. g3
{[%clk 00:33:57]} {[%emt 00:09:40]} Rb6 {[%clk 00:41:57]} {[%emt 00:08:14]} 18.
Nd4 {[%clk 00:26:02]} {[%emt 00:08:25]} a6 {[%clk 00:40:19]} {[%emt 00:02:08]}
19. Be4 {[%clk 00:21:58]} {[%emt 00:04:36]} Rxd6 {[%clk 00:39:55]} {[%emt
00:00:53]} 20. Bxd5 {[%clk 00:21:33]} {[%emt 00:00:55]} Rxd5 {[%clk 00:40:19]}
{[%emt 00:00:06]} 21. c3 {[%clk 00:22:00]} {[%emt 00:00:03]} f6 {[%clk
00:38:36]} {[%emt 00:02:12]} 22. Kc1 {[%clk 00:19:07]} {[%emt 00:03:23]} Rfd8
{[%clk 00:37:42]} {[%emt 00:01:23]} 23. Nf3 {[%clk 00:13:52]} {[%emt 00:05:46]}
e5 {[%clk 00:35:09]} {[%emt 00:03:03]} 24. fxe5 {[%clk 00:11:26]} {[%emt
00:02:57]} Bg4 {[%clk 00:35:31]} {[%emt 00:00:09]} 0-1

[Event "NJSK 2026 Jeugd C"]
[Site "Helmond, Netherlands"]
[Date "2026.04.27"]
[Round "4.6"]
[White "Huang, Vincent"]
[Black "Botter, Simon"]
[Result "1-0"]
[TimeControl "90min/40moves + 30sec/move"]
[WhiteTitle "-"]
[BlackTitle "-"]
[WhiteFideId "40104184"]
[BlackFideId "40107698"]
[WhiteElo "1855"]
[BlackElo "1988"]

1. d4 {[%clk 01:30:58]} {[%emt 00:00:01]} Nf6 {[%clk 01:30:54]} {[%emt
00:00:06]} 2. c4 {[%clk 01:31:22]} {[%emt 00:00:06]} g6 {[%clk 01:31:20]}
{[%emt 00:00:04]} 3. Nc3 {[%clk 01:31:46]} {[%emt 00:00:06]} Bg7 {[%clk
01:31:46]} {[%emt 00:00:04]} 4. e4 {[%clk 01:31:52]} {[%emt 00:00:23]} d6
{[%clk 01:32:11]} {[%emt 00:00:05]} 5. Nf3 {[%clk 01:32:00]} {[%emt 00:00:22]}
O-O {[%clk 01:32:35]} {[%emt 00:00:07]} 6. Be2 {[%clk 01:32:16]} {[%emt
00:00:13]} Nbd7 {[%clk 01:32:58]} {[%emt 00:00:08]} 7. O-O {[%clk 01:32:00]}
{[%emt 00:00:46]} e5 {[%clk 01:33:24]} {[%emt 00:00:04]} 8. d5 {[%clk
01:31:49]} {[%emt 00:00:41]} Nc5 {[%clk 01:33:41]} {[%emt 00:00:12]} 9. Qc2
{[%clk 01:30:57]} {[%emt 00:01:22]} a5 {[%clk 01:34:07]} {[%emt 00:00:05]} 10.
Be3 {[%clk 01:18:49]} {[%emt 00:12:38]} b6 {[%clk 01:34:05]} {[%emt 00:00:32]}
11. Nd2 {[%clk 01:18:15]} {[%emt 00:01:04]} Ne8 {[%clk 01:31:38]} {[%emt
00:02:57]} 12. Kh1 {[%clk 01:11:42]} {[%emt 00:07:03]} f5 {[%clk 01:31:54]}
{[%emt 00:00:14]} 13. f3 {[%clk 01:11:18]} {[%emt 00:00:54]} f4 {[%clk
01:32:18]} {[%emt 00:00:06]} 14. Bf2 {[%clk 01:11:36]} {[%emt 00:00:12]} g5
{[%clk 01:32:37]} {[%emt 00:00:11]} 15. a3 {[%clk 01:07:10]} {[%emt 00:04:56]}
h5 {[%clk 01:31:47]} {[%emt 00:01:19]} 16. b4 {[%clk 01:06:04]} {[%emt
00:01:37]} Nb7 {[%clk 01:31:48]} {[%emt 00:00:30]} 17. c5 {[%clk 00:57:55]}
{[%emt 00:08:38]} bxc5 {[%clk 01:29:17]} {[%emt 00:03:00]} 18. bxc5 {[%clk
00:58:02]} {[%emt 00:00:23]} dxc5 {[%clk 01:26:08]} {[%emt 00:03:40]} 19. Na4
{[%clk 00:55:49]} {[%emt 00:02:43]} g4 {[%clk 01:26:18]} {[%emt 00:00:20]} 20.
g3 {[%clk 00:52:21]} {[%emt 00:03:58]} fxg3 {[%clk 01:20:36]} {[%emt 00:06:12]}
21. Bxg3 {[%clk 00:48:16]} {[%emt 00:04:35]} h4 {[%clk 01:09:38]} {[%emt
00:11:28]} 22. Bf2 {[%clk 00:45:21]} {[%emt 00:03:25]} g3 {[%clk 01:07:19]}
{[%emt 00:02:49]} 23. hxg3 {[%clk 00:42:29]} {[%emt 00:03:23]} hxg3 {[%clk
01:07:34]} {[%emt 00:00:14]} 24. Bxg3 {[%clk 00:41:32]} {[%emt 00:01:26]} Bh6
{[%clk 01:02:12]} {[%emt 00:05:52]} 25. Rg1 {[%clk 00:38:03]} {[%emt 00:04:00]}
Kf7 {[%clk 01:00:58]} {[%emt 00:01:43]} 26. Nc4 {[%clk 00:27:19]} {[%emt
00:11:15]} Bf4 {[%clk 01:00:01]} {[%emt 00:01:27]} 27. Bxf4 {[%clk 00:24:55]}
{[%emt 00:02:54]} Rh8+ {[%clk 00:57:14]} {[%emt 00:03:17]} 28. Kg2 {[%clk
00:23:20]} {[%emt 00:02:04]} exf4 {[%clk 00:56:08]} {[%emt 00:01:37]} 29. Ne5+
{[%clk 00:21:41]} {[%emt 00:02:09]} Kf6 {[%clk 00:54:16]} {[%emt 00:02:22]} 30.
Nc6 {[%clk 00:20:47]} {[%emt 00:01:24]} 1-0

[Event "NJSK 2026 Jeugd C"]
[Site "Helmond, Netherlands"]
[Date "2026.04.27"]
[Round "4.7"]
[White "Okita, Ryoga"]
[Black "Lenting, Roan"]
[Result "0-1"]
[TimeControl "90min/40moves + 30sec/move"]
[WhiteTitle "-"]
[BlackTitle "-"]
[WhiteFideId "1090666"]
[BlackFideId "1085905"]
[WhiteElo "1812"]
[BlackElo "1986"]

1. e4 {[%clk 01:30:53]} {[%emt 00:00:07]} c5 {[%clk 01:30:56]} {[%emt
00:00:04]} 2. Nc3 {[%clk 01:31:17]} {[%emt 00:00:06]} Nc6 {[%clk 01:31:22]}
{[%emt 00:00:04]} 3. f4 {[%clk 01:31:30]} {[%emt 00:00:17]} g6 {[%clk
01:31:48]} {[%emt 00:00:04]} 4. Nf3 {[%clk 01:31:56]} {[%emt 00:00:04]} Bg7
{[%clk 01:32:13]} {[%emt 00:00:05]} 5. Bb5 {[%clk 01:32:07]} {[%emt 00:00:19]}
Nd4 {[%clk 01:32:09]} {[%emt 00:00:34]} 6. O-O {[%clk 01:32:22]} {[%emt
00:00:14]} e6 {[%clk 01:30:08]} {[%emt 00:02:28]} 7. d3 {[%clk 01:31:22]}
{[%emt 00:01:33]} Ne7 {[%clk 01:29:51]} {[%emt 00:00:47]} 8. e5 {[%clk
01:31:15]} {[%emt 00:00:38]} a6 {[%clk 01:29:02]} {[%emt 00:01:19]} 9. Bc4
{[%clk 01:30:39]} {[%emt 00:01:05]} d5 {[%clk 01:25:50]} {[%emt 00:03:42]} 10.
exd6 {[%clk 01:28:40]} {[%emt 00:02:30]} Qxd6 {[%clk 01:25:27]} {[%emt
00:00:52]} 11. Be3 {[%clk 01:27:25]} {[%emt 00:01:45]} O-O {[%clk 01:24:09]}
{[%emt 00:01:48]} 12. Ne4 {[%clk 01:25:19]} {[%emt 00:02:37]} Qc7 {[%emt
00:00:48]} 13. Bxd4 {[%clk 01:20:12]} {[%emt 00:05:28]} cxd4 {[%clk 01:24:08]}
{[%emt 00:00:20]} 14. Nh4 {[%clk 01:17:26]} {[%emt 00:03:17]} b5 {[%clk
01:23:48]} {[%emt 00:00:51]} 15. Bb3 {[%clk 01:17:48]} {[%emt 00:00:07]} Bb7
{[%clk 01:23:06]} {[%emt 00:01:13]} 16. Qe1 {[%clk 01:07:33]} {[%emt 00:10:45]}
Nf5 {[%clk 01:19:02]} {[%emt 00:04:33]} 17. Rc1 {[%clk 01:00:57]} {[%emt
00:07:06]} Qb6 {[%clk 01:14:52]} {[%emt 00:04:40]} 18. Nxf5 {[%clk 00:58:51]}
{[%emt 00:02:37]} exf5 {[%clk 01:15:16]} {[%emt 00:00:05]} 19. Ng5 {[%clk
00:59:11]} {[%emt 00:00:10]} Qc6 {[%clk 01:08:22]} {[%emt 00:07:25]} 20. Qg3
{[%clk 00:54:20]} {[%emt 00:05:20]} Qd6 {[%clk 01:02:20]} {[%emt 00:06:32]} 21.
Rfe1 {[%clk 00:50:43]} {[%emt 00:04:07]} Bd5 {[%clk 01:00:40]} {[%emt
00:02:11]} 22. Re2 {[%clk 00:40:44]} {[%emt 00:10:29]} Rfe8 {[%clk 00:56:54]}
{[%emt 00:04:15]} 23. Rce1 {[%clk 00:39:26]} {[%emt 00:01:48]} Rxe2 {[%clk
00:56:16]} {[%emt 00:01:08]} 24. Rxe2 {[%clk 00:39:22]} {[%emt 00:00:35]} h6
{[%clk 00:55:13]} {[%emt 00:01:32]} 25. Nf3 {[%clk 00:37:27]} {[%emt 00:02:25]}
Bxb3 {[%clk 00:52:30]} {[%emt 00:03:14]} 26. axb3 {[%clk 00:37:37]} {[%emt
00:00:19]} a5 {[%clk 00:47:23]} {[%emt 00:05:37]} 27. Ne5 {[%clk 00:31:03]}
{[%emt 00:07:04]} Qd5 {[%clk 00:45:49]} {[%emt 00:02:04]} 28. Qf3 {[%clk
00:29:11]} {[%emt 00:02:22]} Qxf3 {[%clk 00:45:10]} {[%emt 00:01:09]} 29. Nxf3
{[%clk 00:28:05]} {[%emt 00:01:37]} Bf6 {[%clk 00:40:24]} {[%emt 00:05:16]} 30.
Nd2 {[%clk 00:25:29]} {[%emt 00:03:06]} a4 {[%clk 00:39:34]} {[%emt 00:01:20]}
31. bxa4 {[%clk 00:19:35]} {[%emt 00:06:23]} Rxa4 {[%clk 00:39:42]} {[%emt
00:00:22]} 32. b3 {[%clk 00:18:54]} {[%emt 00:01:11]} Ra2 {[%clk 00:39:04]}
{[%emt 00:01:08]} 33. Nf3 {[%clk 00:19:17]} {[%emt 00:00:07]} g5 {[%clk
00:38:42]} {[%emt 00:00:52]} 34. fxg5 {[%clk 00:17:48]} {[%emt 00:01:59]} hxg5
{[%clk 00:39:03]} {[%emt 00:00:10]} 35. Kf2 {[%clk 00:17:54]} {[%emt 00:00:24]}
Kg7 {[%clk 00:38:37]} {[%emt 00:00:55]} 36. h3 {[%clk 00:16:58]} {[%emt
00:01:26]} Kg6 {[%clk 00:37:17]} {[%emt 00:01:50]} 37. Ne1 {[%clk 00:12:51]}
{[%emt 00:04:37]} g4 {[%clk 00:34:16]} {[%emt 00:03:31]} 38. hxg4 {[%emt
00:00:52]} fxg4 {[%clk 00:34:13]} {[%emt 00:00:32]} 39. Kg3 {[%clk 00:12:42]}
{[%emt 00:00:18]} Kh5 {[%clk 00:33:37]} {[%emt 00:01:06]} 40. Kf4 {[%clk
00:10:59]} {[%emt 00:02:13]} Ra6 {[%clk 00:31:43]} {[%emt 00:02:24]} 41. Re8
{[%clk 00:09:40]} {[%emt 00:01:49]} Bg5+ {[%clk 00:28:13]} {[%emt 00:04:00]} 42.
Ke4 {[%clk 00:05:31]} {[%emt 00:04:39]} Bd2 {[%clk 00:25:27]} {[%emt 00:03:15]}
43. Kf5 {[%clk 00:03:52]} {[%emt 00:02:10]} Re6 {[%clk 00:24:15]} {[%emt
00:01:41]} 44. Rxe6 {[%clk 00:00:31]} {[%emt 00:03:52]} fxe6+ {[%clk 00:24:35]}
{[%emt 00:00:11]} 45. Kxe6 {[%clk 00:00:58]} {[%emt 00:00:02]} Bxe1 {[%clk
00:24:45]} {[%emt 00:00:19]} 46. Kd5 {[%clk 00:00:48]} {[%emt 00:00:41]} Kh4
{[%clk 00:24:30]} {[%emt 00:00:45]} 47. Ke4 {[%clk 00:01:04]} {[%emt 00:00:14]}
Kg3 {[%clk 00:24:51]} {[%emt 00:00:09]} 48. Kf5 {[%clk 00:01:15]} {[%emt
00:00:19]} Bd2 {[%clk 00:25:16]} {[%emt 00:00:06]} 49. b4 {[%clk 00:00:47]}
{[%emt 00:00:57]} Bxb4 {[%clk 00:25:37]} {[%emt 00:00:08]} 50. Ke4 {[%clk
00:00:36]} {[%emt 00:00:42]} Kxg2 {[%clk 00:26:00]} {[%emt 00:00:07]} 51. Kxd4
{[%clk 00:00:55]} {[%emt 00:00:12]} Kf2 {[%clk 00:26:23]} {[%emt 00:00:06]} 52.
c4 {[%clk 00:00:59]} {[%emt 00:00:26]} bxc4 {[%clk 00:26:49]} {[%emt 00:00:04]}
53. dxc4 {[%clk 00:01:20]} {[%emt 00:00:09]} g3 {[%clk 00:27:17]} {[%emt
00:00:03]} 54. c5 {[%clk 00:01:39]} {[%emt 00:00:10]} Bxc5+ {[%clk 00:27:44]}
{[%emt 00:00:03]} 55. Kd3 {[%clk 00:02:05]} {[%emt 00:00:04]} Bd4 {[%clk
00:28:05]} {[%emt 00:00:09]} 56. Ke4 {[%clk 00:02:16]} {[%emt 00:00:19]} g2
{[%clk 00:28:28]} {[%emt 00:00:06]} 57. Kd3 {[%clk 00:02:35]} {[%emt 00:00:12]}
g1=Q {[%clk 00:28:44]} {[%emt 00:00:15]} 58. Kc2 {[%clk 00:02:49]} {[%emt
00:00:15]} Ke2 {[%clk 00:28:58]} {[%emt 00:00:16]} 59. Kb3 {[%clk 00:03:14]}
{[%emt 00:00:05]} Qc1 {[%clk 00:29:23]} {[%emt 00:00:05]} 60. Ka4 {[%clk
00:03:31]} {[%emt 00:00:13]} Qc4+ {[%clk 00:29:39]} {[%emt 00:00:13]} 61. Ka5
{[%clk 00:03:48]} {[%emt 00:00:14]} Qb3 {[%clk 00:30:03]} {[%emt 00:00:06]} 0-1